[Event "Championnat de France Universitaire 2022"]
[Site "Limoges, France"]
[Date "2022.02.05"]
[Round "5.4"]
[White "Albaric, Etienne"]
[Black "Valles, Manuel"]
[Result "1/2-1/2"]
[TimeControl "15'+5''"]
[WhiteElo "2235"]
[BlackElo "2362"]

1. e4 {[%clk 00:15:09]} {[%emt 00:00:01]} c5 {[%clk 00:15:05]} {[%emt
00:00:06]} 2. Nf3 {[%clk 00:15:12]} {[%emt 00:00:01]} e6 {[%clk 00:15:09]} 3.
d4 {[%clk 00:15:16]} {[%emt 00:00:02]} cxd4 {[%clk 00:15:13]} {[%emt 00:00:02]}
4. Nxd4 {[%clk 00:15:20]} Nf6 {[%clk 00:15:17]} {[%emt 00:00:01]} 5. Nc3 {[%clk
00:15:24]} {[%emt 00:00:01]} Nc6 {[%clk 00:15:21]} 6. Nxc6 {[%clk 00:15:27]}
{[%emt 00:00:02]} bxc6 {[%clk 00:15:21]} {[%emt 00:00:06]} 7. e5 {[%clk
00:15:30]} Nd5 {[%clk 00:15:25]} 8. Ne4 {[%clk 00:15:34]} Qc7 {[%clk 00:15:29]}
{[%emt 00:00:03]} 9. f4 {[%clk 00:15:38]} Qb6 {[%clk 00:15:34]} {[%emt
00:00:01]} 10. c4 {[%clk 00:15:42]} Bb4+ {[%clk 00:15:37]} {[%emt 00:00:03]} 11.
Ke2 {[%clk 00:15:45]} f5 {[%clk 00:15:40]} {[%emt 00:00:03]} 12. Nf2 {[%emt
00:00:06]} Ba6 13. Kf3 {[%clk 00:15:48]} {[%emt 00:00:01]} Ne7 {[%clk
00:15:49]} 14. Be3 {[%clk 00:15:51]} {[%emt 00:00:02]} Bc5 {[%clk 00:15:43]}
{[%emt 00:00:11]} 15. Bxc5 {[%clk 00:15:54]} {[%emt 00:00:02]} Qxc5 {[%clk
00:15:47]} 16. Qd6 {[%clk 00:15:57]} {[%emt 00:00:02]} Qa5 {[%clk 00:15:34]}
{[%emt 00:00:18]} 17. Rd1 {[%clk 00:14:38]} {[%emt 00:01:24]} Qxa2 {[%clk
00:13:30]} {[%emt 00:02:09]} 18. Qxd7+ {[%clk 00:13:21]} {[%emt 00:01:22]} Kf7
{[%clk 00:13:34]} 19. Qd4 {[%clk 00:03:56]} {[%emt 00:09:30]} Rhd8 {[%clk
00:06:57]} {[%emt 00:06:42]} 20. Qc3 {[%clk 00:03:33]} {[%emt 00:00:28]} Rxd1
{[%clk 00:05:01]} {[%emt 00:02:01]} 21. Nxd1 {[%clk 00:03:38]} {[%emt
00:00:01]} Rb8 {[%clk 00:04:51]} {[%emt 00:00:15]} 22. Kf2 {[%clk 00:01:21]}
{[%emt 00:02:22]} c5 {[%clk 00:04:55]} {[%emt 00:00:01]} 23. Be2 {[%clk
00:00:59]} {[%emt 00:00:26]} Nc6 {[%clk 00:04:50]} {[%emt 00:00:09]} 24. g4
{[%clk 00:00:47]} {[%emt 00:00:18]} fxg4 {[%clk 00:04:11]} {[%emt 00:00:44]} 25.
f5 {[%clk 00:00:35]} {[%emt 00:00:18]} exf5 {[%clk 00:03:45]} {[%emt 00:00:30]}
26. e6+ {[%clk 00:00:39]} Kg8 {[%clk 00:02:35]} {[%emt 00:01:16]} 27. Qg3
{[%clk 00:00:28]} {[%emt 00:00:16]} Bxc4 {[%clk 00:01:32]} {[%emt 00:01:08]} 28.
Nc3 {[%clk 00:00:32]} Qxb2 {[%clk 00:01:18]} {[%emt 00:00:20]} 29. Rb1 {[%clk
00:00:35]} {[%emt 00:00:01]} f4 {[%clk 00:01:07]} {[%emt 00:00:16]} 30. Qxf4
{[%clk 00:00:29]} {[%emt 00:00:11]} Qxb1 {[%clk 00:00:44]} {[%emt 00:00:28]} 31.
Nxb1 {[%clk 00:00:33]} {[%emt 00:00:01]} Rf8 {[%clk 00:00:44]} {[%emt
00:00:05]} 32. Qxf8+ {[%clk 00:00:21]} {[%emt 00:00:17]} Kxf8 {[%clk 00:00:48]}
33. Bxc4 {[%clk 00:00:25]} {[%emt 00:00:01]} Ke7 {[%clk 00:00:42]} {[%emt
00:00:10]} 34. Nc3 {[%clk 00:00:27]} {[%emt 00:00:03]} Nd4 {[%clk 00:00:33]}
{[%emt 00:00:10]} 35. Kg3 {[%clk 00:00:11]} {[%emt 00:00:25]} Nxe6 {[%clk
00:00:28]} {[%emt 00:00:10]} 36. Kxg4 {[%clk 00:00:12]} {[%emt 00:00:04]} Nd4
{[%clk 00:00:19]} {[%emt 00:00:14]} 37. Ne4 {[%clk 00:00:13]} {[%emt 00:00:05]}
Nc2 {[%clk 00:00:09]} {[%emt 00:00:15]} 38. Bd3 {[%clk 00:00:11]} {[%emt
00:00:07]} Na3 {[%clk 00:00:07]} {[%emt 00:00:07]} 39. Nxc5 {[%clk 00:00:12]}
{[%emt 00:00:03]} h6 {[%clk 00:00:09]} {[%emt 00:00:03]} 40. Kf4 {[%clk
00:00:14]} {[%emt 00:00:03]} Kd6 {[%clk 00:00:13]} {[%emt 00:00:02]} 41. Ne4+
{[%clk 00:00:16]} {[%emt 00:00:03]} Kd5 {[%clk 00:00:15]} {[%emt 00:00:02]} 42.
Nd2 {[%clk 00:00:06]} {[%emt 00:00:16]} a5 {[%clk 00:00:13]} {[%emt 00:00:07]}
43. Bg6 {[%clk 00:00:07]} {[%emt 00:00:04]} Nb5 {[%clk 00:00:12]} {[%emt
00:00:06]} 44. Be8 {[%clk 00:00:07]} {[%emt 00:00:05]} Nd6 {[%clk 00:00:09]}
{[%emt 00:00:08]} 45. Bd7 {[%clk 00:00:07]} {[%emt 00:00:05]} Kc5 {[%clk
00:00:09]} {[%emt 00:00:05]} 46. Ke3 {[%clk 00:00:08]} {[%emt 00:00:03]} Kd5
{[%clk 00:00:09]} {[%emt 00:00:06]} 47. Kd3 {[%clk 00:00:12]} {[%emt 00:00:02]}
Ke5 {[%clk 00:00:11]} {[%emt 00:00:03]} 48. Ke3 {[%clk 00:00:10]} {[%emt
00:00:06]} Kd5 {[%clk 00:00:11]} {[%emt 00:00:06]} 49. Ba4 {[%clk 00:00:11]}
{[%emt 00:00:04]} Nf5+ {[%clk 00:00:07]} {[%emt 00:00:09]} 50. Kd3 {[%clk
00:00:13]} {[%emt 00:00:04]} Nd4 {[%clk 00:00:11]} {[%emt 00:00:01]} 51. h4
{[%clk 00:00:13]} {[%emt 00:00:05]} g5 {[%clk 00:00:10]} {[%emt 00:00:06]} 52.
h5 {[%clk 00:00:17]} Nf5 {[%clk 00:00:07]} {[%emt 00:00:08]} 53. Ne4 {[%clk
00:00:15]} {[%emt 00:00:07]} Ke5 {[%clk 00:00:08]} {[%emt 00:00:04]} 54. Bd1
{[%clk 00:00:10]} {[%emt 00:00:10]} Ng7 {[%clk 00:00:07]} {[%emt 00:00:06]} 55.
Nf2 {[%clk 00:00:10]} {[%emt 00:00:05]} Kf4 {[%clk 00:00:06]} {[%emt 00:00:06]}
56. Kc4 {[%clk 00:00:11]} {[%emt 00:00:04]} Kg3 {[%clk 00:00:06]} {[%emt
00:00:05]} 57. Ne4+ {[%clk 00:00:15]} Kh4 {[%clk 00:00:09]} {[%emt 00:00:02]}
58. Nf6 {[%clk 00:00:18]} {[%emt 00:00:02]} g4 {[%clk 00:00:12]} {[%emt
00:00:03]} 59. Nxg4 {[%clk 00:00:16]} {[%emt 00:00:06]} Nxh5 {[%clk 00:00:15]}
{[%emt 00:00:02]} 60. Kb5 {[%clk 00:00:18]} {[%emt 00:00:03]} Kg5 {[%clk
00:00:18]} {[%emt 00:00:02]} 61. Kxa5 {[%clk 00:00:18]} {[%emt 00:00:05]} Nf6
{[%clk 00:00:21]} {[%emt 00:00:01]} 62. Nxf6 {[%clk 00:00:10]} {[%emt
00:00:13]} Kxf6 {[%clk 00:15:05]} {[%emt 00:00:02]} 1/2-1/2

[Event "Championnat de France Universitaire 2022"]
[Site "Limoges, France"]
[Date "2022.02.05"]
[Round "5.2"]
[White "Derige Kane, Yan"]
[Black "Bouslimi, Nabil"]
[Result "1-0"]
[TimeControl "15'+5''"]
[WhiteElo "2148"]
[BlackElo "2052"]

1. d4 {[%clk 00:15:08]} {[%emt 00:00:01]} Nf6 {[%clk 00:15:09]} {[%emt
00:00:02]} 2. Bg5 {[%clk 00:15:12]} d5 {[%clk 00:15:07]} {[%emt 00:00:07]} 3.
Nd2 {[%clk 00:15:16]} {[%emt 00:00:01]} e6 {[%clk 00:15:04]} {[%emt 00:00:08]}
4. e3 {[%clk 00:15:13]} {[%emt 00:00:07]} Be7 {[%clk 00:15:04]} {[%emt
00:00:05]} 5. Bd3 {[%clk 00:15:14]} {[%emt 00:00:04]} Nbd7 {[%clk 00:14:33]}
{[%emt 00:00:37]} 6. f4 {[%clk 00:15:17]} {[%emt 00:00:03]} c5 {[%clk
00:14:23]} {[%emt 00:00:13]} 7. c3 {[%clk 00:15:22]} Rb8 {[%clk 00:14:18]}
{[%emt 00:00:10]} 8. Ngf3 {[%clk 00:15:22]} {[%emt 00:00:04]} h6 {[%clk
00:13:44]} {[%emt 00:00:40]} 9. Bxf6 {[%clk 00:14:03]} {[%emt 00:01:24]} Bxf6
{[%clk 00:13:34]} {[%emt 00:00:14]} 10. O-O {[%clk 00:14:06]} {[%emt 00:00:02]}
b5 {[%clk 00:12:49]} {[%emt 00:00:51]} 11. Ne5 {[%clk 00:14:07]} {[%emt
00:00:03]} Qb6 {[%clk 00:12:46]} {[%emt 00:00:08]} 12. Qh5 {[%clk 00:12:49]}
{[%emt 00:01:23]} O-O {[%clk 00:09:37]} {[%emt 00:03:14]} 13. Ndf3 {[%clk
00:09:16]} {[%emt 00:03:38]} Bd8 {[%clk 00:06:34]} {[%emt 00:03:08]} 14. Nxd7
{[%clk 00:07:46]} {[%emt 00:01:35]} Bxd7 {[%clk 00:06:35]} {[%emt 00:00:04]} 15.
g4 {[%clk 00:07:50]} Be8 {[%clk 00:05:25]} {[%emt 00:01:16]} 16. Qh3 {[%clk
00:07:46]} {[%emt 00:00:09]} f6 {[%clk 00:03:07]} {[%emt 00:02:24]} 17. g5
{[%clk 00:06:22]} {[%emt 00:01:28]} f5 {[%clk 00:01:25]} {[%emt 00:01:47]} 18.
gxh6 {[%clk 00:05:50]} {[%emt 00:00:37]} g6 {[%clk 00:01:25]} {[%emt 00:00:06]}
19. Kh1 {[%clk 00:05:26]} {[%emt 00:00:29]} Kh7 {[%clk 00:01:17]} {[%emt
00:00:13]} 20. Rg1 {[%clk 00:05:25]} {[%emt 00:00:05]} Bf6 {[%clk 00:01:01]}
{[%emt 00:00:21]} 21. Rg2 {[%clk 00:05:03]} {[%emt 00:00:27]} b4 {[%clk
00:00:46]} {[%emt 00:00:21]} 22. Rag1 {[%clk 00:04:58]} {[%emt 00:00:10]} Bf7
{[%clk 00:00:34]} {[%emt 00:00:17]} 23. Ng5+ {[%clk 00:03:34]} {[%emt
00:01:29]} Bxg5 {[%clk 00:00:35]} {[%emt 00:00:05]} 24. Rxg5 {[%clk 00:03:38]}
Rg8 {[%clk 00:00:31]} {[%emt 00:00:08]} 25. Qg3 {[%clk 00:03:15]} {[%emt
00:00:29]} Qd8 {[%clk 00:00:09]} {[%emt 00:00:27]} 26. h4 {[%clk 00:00:18]}
{[%emt 00:03:02]} c4 {[%clk 00:00:13]} 27. Be2 {[%clk 00:00:13]} {[%emt
00:00:11]} bxc3 {[%clk 00:00:12]} {[%emt 00:00:06]} 28. bxc3 {[%clk 00:00:17]}
Rb2 {[%clk 00:00:17]} 29. Bf3 {[%clk 00:00:11]} {[%emt 00:00:10]} Qf8 {[%clk
00:00:18]} {[%emt 00:00:03]} 30. h5 {[%clk 00:00:09]} {[%emt 00:00:07]} Qxh6
{[%emt 00:00:03]} 31. Qh4 {[%clk 00:00:08]} {[%emt 00:00:04]} Rxa2 {[%emt
00:00:10]} 32. R1g3 {[%clk 00:00:08]} {[%emt 00:00:05]} gxh5 {[%clk 00:00:18]}
{[%emt 00:00:04]} 33. Rxg8 {[%emt 00:00:01]} Bxg8 34. Qe7+ {[%clk 00:00:13]}
{[%emt 00:00:03]} Kh8 {[%clk 00:00:20]} {[%emt 00:00:08]} 35. Qe8 {[%clk
00:00:17]} {[%emt 00:00:02]} Qh7 {[%clk 00:00:10]} {[%emt 00:00:15]} 36. Rg5
{[%clk 00:00:21]} {[%emt 00:00:01]} Ra1+ {[%clk 00:00:13]} {[%emt 00:00:02]} 37.
Kh2 {[%clk 00:00:24]} {[%emt 00:00:01]} Qf7 {[%clk 00:00:15]} {[%emt 00:00:03]}
38. Rxh5+ {[%clk 00:00:20]} {[%emt 00:00:09]} Kg7 {[%clk 00:00:19]} {[%emt
00:00:01]} 39. Rg5+ {[%clk 00:00:23]} {[%emt 00:00:02]} Kh8 {[%clk 00:00:19]}
{[%emt 00:00:03]} 40. Qd8 {[%clk 00:00:10]} {[%emt 00:00:20]} Ra2+ {[%clk
00:00:23]} {[%emt 00:00:01]} 41. Kg3 {[%clk 00:00:13]} {[%emt 00:00:02]} Ra1
{[%clk 00:00:24]} {[%emt 00:00:04]} 42. Rh5+ {[%clk 00:00:14]} {[%emt
00:00:04]} Kg7 {[%clk 00:00:28]} 43. Rg5+ {[%clk 00:00:18]} Kh8 {[%clk
00:00:28]} {[%emt 00:00:04]} 44. Kh3 {[%clk 00:00:20]} {[%emt 00:00:03]} Rf1
{[%clk 00:00:31]} {[%emt 00:00:03]} 45. Kg2 {[%clk 00:00:21]} {[%emt 00:00:05]}
Rc1 {[%clk 00:00:30]} {[%emt 00:00:03]} 46. Rh5+ {[%clk 00:00:12]} {[%emt
00:00:17]} Kg7 {[%clk 00:00:34]} {[%emt 00:00:01]} 47. Rg5+ {[%clk 00:00:16]}
Kh8 {[%clk 00:00:38]} {[%emt 00:00:01]} 48. Bh5 {[%clk 00:00:12]} {[%emt
00:00:09]} Rc2+ {[%clk 00:00:16]} {[%emt 00:01:54]} 49. Kf3 {[%clk 00:00:11]}
{[%emt 00:00:06]} Qg7 {[%clk 00:00:14]} {[%emt 00:00:07]} 50. Rxg7 Kxg7 {[%clk
00:00:18]} 51. Qe7+ {[%clk 00:00:16]} {[%emt 00:00:02]} Kh6 {[%clk 00:00:10]}
{[%emt 00:00:12]} 52. Qg5+ {[%clk 00:00:19]} {[%emt 00:00:02]} Kh7 {[%clk
00:00:14]} {[%emt 00:00:02]} 53. Bg6+ {[%clk 00:00:13]} {[%emt 00:00:11]} 1-0

[Event "Championnat de France Universitaire 2022"]
[Site "Limoges, France"]
[Date "2022.02.05"]
[Round "5.1"]
[White "Rakotomaharo, Fy Antenaina"]
[Black "Gault, Emmanuel"]
[Result "1-0"]
[TimeControl "15'+5''"]
[WhiteElo "2474"]
[BlackElo "2041"]

1. e4 {[%clk 00:15:08]} {[%emt 00:00:03]} c5 {[%clk 00:15:09]} 2. Nf3 {[%clk
00:15:11]} {[%emt 00:00:02]} Nc6 {[%clk 00:15:12]} {[%emt 00:00:02]} 3. Nc3
{[%clk 00:15:07]} {[%emt 00:00:09]} g6 {[%clk 00:15:15]} {[%emt 00:00:02]} 4.
d4 {[%clk 00:15:06]} {[%emt 00:00:05]} cxd4 5. Nxd4 {[%clk 00:15:10]} Bg7
{[%clk 00:15:22]} {[%emt 00:00:03]} 6. Be3 {[%clk 00:15:13]} Nf6 {[%clk
00:15:25]} {[%emt 00:00:02]} 7. Bc4 {[%clk 00:15:16]} {[%emt 00:00:02]} O-O
{[%clk 00:15:28]} {[%emt 00:00:03]} 8. Bb3 {[%clk 00:15:20]} Re8 {[%clk
00:15:31]} {[%emt 00:00:03]} 9. f3 {[%clk 00:15:10]} {[%emt 00:00:15]} e6
{[%clk 00:15:34]} {[%emt 00:00:02]} 10. f4 {[%clk 00:15:13]} d5 {[%clk
00:15:02]} {[%emt 00:00:39]} 11. e5 {[%clk 00:15:16]} {[%emt 00:00:01]} Nd7
{[%clk 00:14:53]} {[%emt 00:00:14]} 12. h4 {[%clk 00:12:58]} {[%emt 00:02:23]}
f6 {[%clk 00:13:49]} {[%emt 00:01:08]} 13. Nxe6 {[%clk 00:12:11]} {[%emt
00:00:51]} Rxe6 {[%clk 00:13:48]} {[%emt 00:00:06]} 14. Qxd5 {[%clk 00:12:15]}
{[%emt 00:00:01]} Nf8 {[%clk 00:13:12]} {[%emt 00:00:42]} 15. Qxd8 {[%clk
00:12:10]} {[%emt 00:00:09]} Nxd8 {[%clk 00:13:13]} {[%emt 00:00:03]} 16. O-O-O
{[%clk 00:11:57]} {[%emt 00:00:18]} Nc6 {[%clk 00:13:06]} {[%emt 00:00:13]} 17.
exf6 {[%clk 00:10:53]} {[%emt 00:01:09]} Bxf6 {[%clk 00:13:05]} {[%emt
00:00:06]} 18. Ne4 {[%clk 00:10:39]} {[%emt 00:00:19]} Kg7 {[%clk 00:12:08]}
{[%emt 00:01:02]} 19. Bxe6 {[%clk 00:10:42]} {[%emt 00:00:02]} Bxe6 {[%clk
00:12:12]} {[%emt 00:00:02]} 20. h5 {[%clk 00:10:37]} {[%emt 00:00:10]} Be7
{[%clk 00:11:22]} {[%emt 00:00:55]} 21. hxg6 {[%clk 00:10:13]} {[%emt
00:00:30]} hxg6 {[%clk 00:10:57]} {[%emt 00:00:30]} 22. Bd2 {[%clk 00:10:10]}
{[%emt 00:00:08]} Bb4 {[%clk 00:08:45]} {[%emt 00:02:17]} 23. Bxb4 {[%clk
00:09:02]} {[%emt 00:01:13]} Nxb4 {[%clk 00:08:49]} {[%emt 00:00:01]} 24. a3
{[%clk 00:09:05]} {[%emt 00:00:02]} Nc6 {[%clk 00:08:11]} {[%emt 00:00:42]} 25.
Nc5 {[%clk 00:09:01]} {[%emt 00:00:09]} Bg4 {[%clk 00:06:49]} {[%emt 00:01:27]}
26. Rd6 {[%clk 00:09:03]} {[%emt 00:00:03]} Na5 {[%clk 00:06:15]} {[%emt
00:00:39]} 27. Rh4 {[%clk 00:08:22]} {[%emt 00:00:47]} Be2 {[%clk 00:05:29]}
{[%emt 00:00:52]} 28. Ne6+ {[%clk 00:07:59]} {[%emt 00:00:28]} Nxe6 {[%clk
00:05:28]} {[%emt 00:00:06]} 29. Rxe6 {[%clk 00:08:03]} {[%emt 00:00:01]} Bc4
{[%clk 00:05:18]} {[%emt 00:00:14]} 30. Re7+ {[%clk 00:08:06]} Kf6 {[%clk
00:05:17]} {[%emt 00:00:05]} 31. Rc7 {[%clk 00:08:07]} {[%emt 00:00:07]} Ba6
{[%clk 00:04:54]} {[%emt 00:00:28]} 32. Rhh7 {[%clk 00:08:02]} {[%emt
00:00:10]} Rf8 {[%clk 00:04:10]} {[%emt 00:00:49]} 33. g4 {[%clk 00:07:44]}
{[%emt 00:00:24]} Nc4 {[%clk 00:03:25]} {[%emt 00:00:50]} 34. a4 {[%clk
00:07:08]} {[%emt 00:00:41]} Ne3 {[%clk 00:02:39]} {[%emt 00:00:51]} 35. b4
{[%clk 00:07:11]} {[%emt 00:00:02]} Bf1 {[%clk 00:02:35]} {[%emt 00:00:08]} 36.
Rxb7 {[%clk 00:06:30]} {[%emt 00:00:46]} Nxg4 {[%clk 00:02:36]} {[%emt
00:00:04]} 37. Rxa7 {[%clk 00:06:33]} {[%emt 00:00:02]} Ke6 {[%clk 00:02:03]}
{[%emt 00:00:38]} 38. Rhe7+ {[%clk 00:06:24]} {[%emt 00:00:14]} Kd5 {[%clk
00:01:58]} {[%emt 00:00:08]} 39. Rf7 {[%clk 00:06:26]} {[%emt 00:00:06]} Rc8
{[%clk 00:01:50]} {[%emt 00:00:11]} 40. b5 {[%clk 00:06:26]} {[%emt 00:00:07]}
Ne3 {[%clk 00:01:30]} {[%emt 00:00:25]} 41. Rac7 {[%clk 00:06:29]} {[%emt
00:00:02]} Ra8 {[%clk 00:01:28]} {[%emt 00:00:07]} 42. b6 {[%clk 00:06:12]}
{[%emt 00:00:23]} Rxa4 {[%clk 00:01:19]} {[%emt 00:00:13]} 43. b7 {[%clk
00:06:16]} {[%emt 00:00:02]} Rb4 {[%clk 00:01:03]} {[%emt 00:00:21]} 44. Rc8
{[%clk 00:05:57]} {[%emt 00:00:24]} Ke4 {[%clk 00:00:35]} {[%emt 00:00:33]} 45.
b8=Q {[%clk 00:05:34]} {[%emt 00:00:28]} Rxb8 {[%clk 00:00:39]} {[%emt
00:00:01]} 46. Rxb8 {[%clk 00:05:38]} {[%emt 00:00:01]} Nd5 {[%clk 00:00:40]}
{[%emt 00:00:03]} 47. Re8+ {[%clk 00:05:38]} {[%emt 00:00:05]} Kd4 {[%clk
00:00:32]} {[%emt 00:00:14]} 48. Re6 {[%clk 00:05:18]} {[%emt 00:00:26]} Be2
{[%clk 00:00:15]} {[%emt 00:00:22]} 49. Rxe2 {[%clk 00:05:21]} {[%emt
00:00:02]} 1-0

[Event "Championnat de France Universitaire 2022"]
[Site "Limoges, France"]
[Date "2022.02.05"]
[Round "5.5"]
[White "Randrianarimanana, Alicia"]
[Black "Gatineau, Yovann"]
[Result "0-1"]
[TimeControl "15'+5''"]
[WhiteElo "1985"]
[BlackElo "2384"]

1. d4 {[%clk 00:15:09]} f5 {[%clk 00:15:08]} {[%emt 00:00:03]} 2. c4 {[%clk
00:15:12]} {[%emt 00:00:03]} Nf6 {[%clk 00:15:12]} 3. Nc3 {[%clk 00:15:15]}
{[%emt 00:00:01]} e6 {[%clk 00:15:16]} 4. g3 {[%clk 00:15:18]} {[%emt
00:00:03]} Bb4 {[%clk 00:15:20]} {[%emt 00:00:02]} 5. Qc2 {[%clk 00:15:17]}
{[%emt 00:00:05]} O-O {[%clk 00:15:19]} {[%emt 00:00:06]} 6. Bg2 {[%clk
00:15:21]} {[%emt 00:00:03]} d6 {[%clk 00:15:16]} {[%emt 00:00:07]} 7. Nf3
{[%clk 00:15:12]} {[%emt 00:00:14]} Ne4 {[%clk 00:14:33]} {[%emt 00:00:48]} 8.
Bd2 {[%clk 00:14:40]} {[%emt 00:00:37]} Bxc3 {[%clk 00:14:28]} {[%emt
00:00:10]} 9. Bxc3 {[%clk 00:14:43]} {[%emt 00:00:02]} a5 {[%clk 00:14:07]}
{[%emt 00:00:26]} 10. O-O {[%clk 00:13:57]} {[%emt 00:00:50]} Rf6 {[%clk
00:13:44]} {[%emt 00:00:28]} 11. Rab1 {[%clk 00:13:05]} {[%emt 00:00:58]} Bd7
{[%clk 00:13:02]} {[%emt 00:00:47]} 12. Rfd1 {[%clk 00:11:52]} {[%emt
00:01:17]} Be8 {[%clk 00:12:55]} {[%emt 00:00:12]} 13. Nd2 {[%clk 00:11:08]}
{[%emt 00:00:49]} Nxc3 {[%clk 00:12:24]} {[%emt 00:00:36]} 14. bxc3 {[%clk
00:10:51]} {[%emt 00:00:23]} Bc6 {[%clk 00:09:33]} {[%emt 00:02:56]} 15. d5
{[%clk 00:10:42]} {[%emt 00:00:14]} exd5 {[%clk 00:09:24]} {[%emt 00:00:13]} 16.
cxd5 {[%clk 00:10:45]} {[%emt 00:00:02]} Bd7 {[%clk 00:09:27]} {[%emt
00:00:02]} 17. Rxb7 {[%clk 00:10:46]} {[%emt 00:00:06]} Na6 {[%clk 00:09:30]}
{[%emt 00:00:01]} 18. Rdb1 {[%clk 00:09:21]} {[%emt 00:01:30]} Nc5 {[%clk
00:09:25]} {[%emt 00:00:10]} 19. R7b2 {[%clk 00:09:24]} {[%emt 00:00:02]} Na4
{[%clk 00:09:13]} {[%emt 00:00:17]} 20. Rb3 {[%clk 00:09:16]} {[%emt 00:00:14]}
Nc5 {[%clk 00:09:16]} {[%emt 00:00:02]} 21. R3b2 {[%clk 00:09:14]} {[%emt
00:00:06]} Qe8 {[%clk 00:09:09]} {[%emt 00:00:12]} 22. e3 {[%clk 00:08:57]}
{[%emt 00:00:22]} Rf8 {[%clk 00:07:38]} {[%emt 00:01:36]} 23. Re1 {[%clk
00:08:47]} {[%emt 00:00:15]} Qg6 {[%clk 00:07:05]} {[%emt 00:00:39]} 24. Nf3
{[%clk 00:07:38]} {[%emt 00:01:14]} Qf6 {[%clk 00:04:51]} {[%emt 00:02:19]} 25.
Nd4 {[%clk 00:07:35]} {[%emt 00:00:08]} Rae8 {[%clk 00:04:48]} {[%emt
00:00:08]} 26. Rbb1 {[%clk 00:05:38]} {[%emt 00:02:02]} Qe5 {[%clk 00:03:48]}
{[%emt 00:01:04]} 27. Qd1 {[%clk 00:04:24]} {[%emt 00:01:19]} h6 {[%clk
00:03:12]} {[%emt 00:00:41]} 28. c4 {[%clk 00:04:07]} {[%emt 00:00:22]} g5
{[%clk 00:03:07]} {[%emt 00:00:10]} 29. Qh5 {[%clk 00:03:09]} {[%emt 00:01:03]}
Kg7 {[%clk 00:03:08]} {[%emt 00:00:04]} 30. h4 {[%clk 00:03:09]} {[%emt
00:00:05]} g4 {[%clk 00:02:44]} {[%emt 00:00:28]} 31. f4 {[%clk 00:01:57]}
{[%emt 00:01:18]} Qf6 {[%clk 00:02:41]} {[%emt 00:00:07]} 32. Rb2 {[%clk
00:01:00]} {[%emt 00:01:04]} Nd3 {[%clk 00:00:55]} {[%emt 00:01:51]} 33. Rbe2
{[%clk 00:00:44]} {[%emt 00:00:21]} Nxe1 {[%clk 00:00:56]} {[%emt 00:00:04]} 34.
Rxe1 {[%clk 00:00:48]} {[%emt 00:00:01]} Qxd4 {[%clk 00:00:40]} {[%emt
00:00:21]} 35. exd4 {[%clk 00:00:38]} {[%emt 00:00:14]} Rxe1+ {[%clk 00:00:43]}
{[%emt 00:00:02]} 36. Kf2 {[%clk 00:00:43]} Re7 {[%clk 00:00:33]} {[%emt
00:00:15]} 37. c5 {[%clk 00:00:26]} {[%emt 00:00:23]} Be8 {[%clk 00:00:33]}
{[%emt 00:00:05]} 38. Qxe8 {[%clk 00:00:10]} {[%emt 00:00:22]} Rfxe8 {[%clk
00:00:36]} {[%emt 00:00:01]} 39. Bf1 {[%clk 00:00:12]} {[%emt 00:00:04]} Re3
{[%clk 00:00:35]} {[%emt 00:00:05]} 40. Bb5 {[%clk 00:00:14]} {[%emt 00:00:03]}
Rf3+ {[%clk 00:00:37]} {[%emt 00:00:02]} 41. Kg2 {[%clk 00:00:16]} {[%emt
00:00:04]} Ree3 {[%clk 00:00:38]} {[%emt 00:00:02]} 42. cxd6 {[%clk 00:00:18]}
{[%emt 00:00:05]} cxd6 {[%clk 00:00:42]} {[%emt 00:00:01]} 0-1